[Event "*** SCC Grand Prix: Titled Tuesday Blitz"]
[Site "Chess.com"]
[Date "2020.09.29"]
[Round "3"]
[White "Stouuf"]
[Black "Rakesh"]
[Result "1/2-1/2"]
[WhiteElo "2601"]
[BlackElo "2405"]
[TimeControl "180+1"]
[EndTime "10:27:59 PDT"]
[Termination "Game drawn by stalemate"]

1. e4 {[%clk 0:03:00.9]} 1... c5 {[%clk 0:02:54.4]} 2. Nf3 {[%clk 0:02:55.8]}
2... e6 {[%clk 0:02:55.3]} 3. d4 {[%clk 0:02:55.4]} 3... cxd4 {[%clk 0:02:46.6]}
4. Nxd4 {[%clk 0:02:56.3]} 4... a6 {[%clk 0:02:47.1]} 5. Nc3 {[%clk 0:02:52.9]}
5... Qc7 {[%clk 0:02:44.5]} 6. g3 {[%clk 0:02:52.5]} 6... Bb4 {[%clk 0:02:42.8]}
7. Ne2 {[%clk 0:02:50]} 7... Be7 {[%clk 0:02:43.2]} 8. Bg2 {[%clk 0:02:49.8]}
8... Nf6 {[%clk 0:02:44.1]} 9. O-O {[%clk 0:02:50.2]} 9... Qd6 {[%clk 0:02:45]}
10. Bf4 {[%clk 0:02:26.7]} 10... Qxd1 {[%clk 0:02:41.5]} 11. Rfxd1 {[%clk
0:02:27.6]} 11... Nc6 {[%clk 0:02:42]} 12. Bd6 {[%clk 0:02:25.5]} 12... Bxd6
{[%clk 0:02:33]} 13. Rxd6 {[%clk 0:02:26.4]} 13... Ke7 {[%clk 0:02:33.5]} 14.
Rad1 {[%clk 0:02:21.9]} 14... Ne8 {[%clk 0:02:34.4]} 15. R6d2 {[%clk 0:02:16.4]}
15... d6 {[%clk 0:02:34.5]} 16. Na4 {[%clk 0:02:14.3]} 16... Bd7 {[%clk
0:02:33.9]} 17. Nb6 {[%clk 0:02:14.4]} 17... Rd8 {[%clk 0:02:34.5]} 18. f4
{[%clk 0:02:08.1]} 18... f6 {[%clk 0:02:33.9]} 19. c4 {[%clk 0:02:07.1]} 19...
e5 {[%clk 0:02:09.3]} 20. f5 {[%clk 0:01:57.7]} 20... g6 {[%clk 0:02:08.6]} 21.
g4 {[%clk 0:01:57.1]} 21... gxf5 {[%clk 0:02:08.8]} 22. exf5 {[%clk 0:01:42.5]}
22... Rg8 {[%clk 0:02:03.4]} 23. h3 {[%clk 0:01:30.9]} 23... h5 {[%clk 0:02:03]}
24. Nxd7 {[%clk 0:01:21.2]} 24... Rxd7 {[%clk 0:02:01]} 25. Bf3 {[%clk
0:01:20.6]} 25... hxg4 {[%clk 0:02:00.7]} 26. hxg4 {[%clk 0:01:21.5]} 26... Nc7
{[%clk 0:01:35.8]} 27. Kf2 {[%clk 0:01:20.3]} 27... Rh8 {[%clk 0:01:31.6]} 28.
Kg3 {[%clk 0:01:16.3]} 28... Rdd8 {[%clk 0:01:15.9]} 29. Nc3 {[%clk 0:01:13.9]}
29... Nd4 {[%clk 0:01:14]} 30. Bxb7 {[%clk 0:01:06]} 30... Rdg8 {[%clk 0:01:13]}
31. Rxd4 {[%clk 0:01:05.4]} 31... exd4 {[%clk 0:01:12]} 32. Rxd4 {[%clk
0:01:05.7]} 32... Rb8 {[%clk 0:01:06.6]} 33. Bf3 {[%clk 0:00:42]} 33... Rxb2
{[%clk 0:01:07.5]} 34. Ne4 {[%clk 0:00:36.9]} 34... Rb6 {[%clk 0:01:00.4]} 35.
g5 {[%clk 0:00:35]} 35... fxg5 {[%clk 0:00:59.1]} 36. Nxg5 {[%clk 0:00:35.9]}
36... Rg8 {[%clk 0:00:58]} 37. Kf4 {[%clk 0:00:36]} 37... Rb2 {[%clk 0:00:54.2]}
38. Ne4 {[%clk 0:00:35.2]} 38... Rxa2 {[%clk 0:00:47]} 39. Rxd6 {[%clk
0:00:31.8]} 39... Ne8 {[%clk 0:00:43.1]} 40. Re6+ {[%clk 0:00:30.9]} 40... Kd8
{[%clk 0:00:41.6]} 41. f6 {[%clk 0:00:20.4]} 41... Rf8 {[%clk 0:00:41]} 42. Ke5
{[%clk 0:00:20.7]} 42... Ra5+ {[%clk 0:00:32]} 43. c5 {[%clk 0:00:20.7]} 43...
Nxf6 {[%clk 0:00:30.7]} 44. Rxf6 {[%clk 0:00:18.6]} 44... Rxf6 {[%clk
0:00:30.3]} 45. Kxf6 {[%clk 0:00:19.5]} 45... Kc7 {[%clk 0:00:26.9]} 46. Ke5
{[%clk 0:00:19.8]} 46... Kc6 {[%clk 0:00:26.5]} 47. Nd6+ {[%clk 0:00:16.3]}
47... Kxc5 {[%clk 0:00:26]} 48. Nb7+ {[%clk 0:00:16.8]} 48... Kb6+ {[%clk
0:00:25.8]} 49. Nxa5 {[%clk 0:00:16.3]} 49... Kxa5 {[%clk 0:00:26.1]} 50. Kd4
{[%clk 0:00:17]} 50... Kb4 {[%clk 0:00:26.5]} 51. Bd5 {[%clk 0:00:16.3]} 51...
a5 {[%clk 0:00:25.8]} 52. Kd3 {[%clk 0:00:17]} 52... Ka3 {[%clk 0:00:25.6]} 53.
Kc2 {[%clk 0:00:16.8]} 53... a4 {[%clk 0:00:25.7]} 54. Kc3 {[%clk 0:00:15.5]}
1/2-1/2

[Event "*** SCC Grand Prix: Titled Tuesday Blitz"]
[Site "Chess.com"]
[Date "2020.09.29"]
[Round "3"]
[White "AndrewMaco"]
[Black "rasmussvane"]
[Result "0-1"]
[WhiteElo "2663"]
[BlackElo "2896"]
[TimeControl "180+1"]
[EndTime "10:28:04 PDT"]
[Termination "rasmussvane won by resignation"]

1. e4 {[%clk 0:02:48.9]} 1... c6 {[%clk 0:02:59.9]} 2. d4 {[%clk 0:02:46.7]}
2... d5 {[%clk 0:03:00.8]} 3. e5 {[%clk 0:02:47.3]} 3... Bf5 {[%clk 0:03:01]} 4.
Nf3 {[%clk 0:02:47.8]} 4... e6 {[%clk 0:03:01.5]} 5. Be2 {[%clk 0:02:47.7]} 5...
Ne7 {[%clk 0:03:01.7]} 6. c3 {[%clk 0:02:47.3]} 6... Nd7 {[%clk 0:03:01.2]} 7.
O-O {[%clk 0:02:47.5]} 7... Ng6 {[%clk 0:03:01.6]} 8. Be3 {[%clk 0:02:43.1]}
8... f6 {[%clk 0:03:01.4]} 9. Nbd2 {[%clk 0:02:42]} 9... fxe5 {[%clk 0:02:48.9]}
10. dxe5 {[%clk 0:02:41.4]} 10... c5 {[%clk 0:02:12.7]} 11. Qa4 {[%clk
0:02:10.5]} 11... a6 {[%clk 0:02:03.9]} 12. Qb3 {[%clk 0:01:47.6]} 12... Qc7
{[%clk 0:01:50.8]} 13. Rae1 {[%clk 0:01:19]} 13... Be7 {[%clk 0:01:50.2]} 14. h3
{[%clk 0:01:00.7]} 14... Ngxe5 {[%clk 0:01:40]} 15. Nxe5 {[%clk 0:00:51.6]}
15... Nxe5 {[%clk 0:01:40.9]} 16. g4 {[%clk 0:00:42.8]} 16... Bg6 {[%clk
0:00:49.6]} 17. Qa4+ {[%clk 0:00:33.8]} 17... Qd7 {[%clk 0:00:34.4]} 18. Qa5
{[%clk 0:00:18.1]} 18... Rc8 {[%clk 0:00:29.6]} 19. f4 {[%clk 0:00:17.8]} 19...
Nd3 {[%clk 0:00:24.3]} 20. f5 {[%clk 0:00:18.1]} 20... Nxe1 {[%clk 0:00:23.9]}
21. fxg6 {[%clk 0:00:18.4]} 21... Nc2 {[%clk 0:00:23.7]} 22. Bf4 {[%clk
0:00:12.9]} 22... hxg6 {[%clk 0:00:22.1]} 23. Bd3 {[%clk 0:00:13.4]} 23... Qc6
{[%clk 0:00:15.9]} 24. Bxg6+ {[%clk 0:00:13.1]} 24... Kd7 {[%clk 0:00:16.1]} 25.
Bxc2 {[%clk 0:00:13.4]} 25... Rxh3 {[%clk 0:00:16.2]} 26. Nf3 {[%clk 0:00:11.4]}
26... Bd6 {[%clk 0:00:14]} 27. Ne5+ {[%clk 0:00:09.2]} 27... Bxe5 {[%clk
0:00:14.5]} 28. Bxe5 {[%clk 0:00:10.1]} 28... Ke7 {[%clk 0:00:13.2]} 29. Kg2
{[%clk 0:00:04.3]} 29... Rch8 {[%clk 0:00:12.7]} 30. Bf4 {[%clk 0:00:03.9]}
30... d4+ {[%clk 0:00:13]} 31. Kf2 {[%clk 0:00:02.5]} 31... Rf3+ {[%clk
0:00:10.4]} 32. Ke1 {[%clk 0:00:03]} 32... Rxf1+ {[%clk 0:00:10.8]} 33. Kxf1
{[%clk 0:00:03.5]} 33... Qf3+ {[%clk 0:00:10.7]} 34. Ke1 {[%clk 0:00:04.4]}
34... Rh1+ {[%clk 0:00:10.3]} 35. Kd2 {[%clk 0:00:04.7]} 35... Qxf4+ {[%clk
0:00:10.1]} 36. Kd3 {[%clk 0:00:05.6]} 36... Qe3+ {[%clk 0:00:07.1]} 37. Kc4
{[%clk 0:00:06.1]} 37... b5+ {[%clk 0:00:06.7]} 38. Kxc5 {[%clk 0:00:06.2]}
38... d3+ {[%clk 0:00:07.2]} 39. Kc6 {[%clk 0:00:06.9]} 39... dxc2 {[%clk
0:00:07]} 40. Qc7+ {[%clk 0:00:07.2]} 40... Kf6 {[%clk 0:00:07.5]} 41. Qd8+
{[%clk 0:00:07.6]} 41... Ke5 {[%clk 0:00:06.2]} 42. Qc7+ {[%clk 0:00:07.8]}
42... Ke4 {[%clk 0:00:06.6]} 43. Qd6 {[%clk 0:00:07.8]} 43... c1=Q {[%clk
0:00:05.4]} 44. Qxe6+ {[%clk 0:00:08.3]} 44... Kd3 {[%clk 0:00:05.8]} 45. Qg6+
{[%clk 0:00:07.6]} 45... Qe4+ {[%clk 0:00:06.2]} 46. Qxe4+ {[%clk 0:00:08.2]}
46... Kxe4 {[%clk 0:00:07.1]} 0-1

[Event "*** SCC Grand Prix: Titled Tuesday Blitz"]
[Site "Chess.com"]
[Date "2020.09.29"]
[Round "3"]
[White "Vamostodorecto"]
[Black "sokidze"]
[Result "0-1"]
[WhiteElo "2397"]
[BlackElo "2611"]
[TimeControl "180+1"]
[EndTime "10:28:05 PDT"]
[Termination "sokidze won by resignation"]

1. d4 {[%clk 0:03:00.9]} 1... Nf6 {[%clk 0:02:59.7]} 2. c4 {[%clk 0:03:01]} 2...
e6 {[%clk 0:03:00.1]} 3. Nc3 {[%clk 0:03:00.5]} 3... Bb4 {[%clk 0:02:59.9]} 4.
Nf3 {[%clk 0:03:00.5]} 4... b6 {[%clk 0:02:50.7]} 5. e3 {[%clk 0:02:57]} 5...
Bb7 {[%clk 0:02:50.1]} 6. Bd3 {[%clk 0:02:56.2]} 6... Ne4 {[%clk 0:02:41.2]} 7.
Qc2 {[%clk 0:02:55.2]} 7... Bxc3+ {[%clk 0:02:39.2]} 8. bxc3 {[%clk 0:02:52.8]}
8... f5 {[%clk 0:02:39.3]} 9. O-O {[%clk 0:02:52.2]} 9... O-O {[%clk 0:02:39]}
10. c5 {[%clk 0:02:52.2]} 10... bxc5 {[%clk 0:01:46]} 11. Rb1 {[%clk 0:02:51.4]}
11... Qc8 {[%clk 0:01:34.8]} 12. Ne5 {[%clk 0:02:48]} 12... d6 {[%clk
0:01:31.4]} 13. Nc4 {[%clk 0:02:47.2]} 13... Nd7 {[%clk 0:01:27.8]} 14. Na5
{[%clk 0:02:44.9]} 14... Ba6 {[%clk 0:01:23.9]} 15. c4 {[%clk 0:02:22.5]} 15...
Nef6 {[%clk 0:01:01]} 16. d5 {[%clk 0:02:18.4]} 16... Ne5 {[%clk 0:00:58.4]} 17.
dxe6 {[%clk 0:01:57.6]} 17... Nxd3 {[%clk 0:00:58.6]} 18. Qxd3 {[%clk
0:01:29.9]} 18... Qxe6 {[%clk 0:00:57.1]} 19. Bb2 {[%clk 0:01:28.4]} 19... Rab8
{[%clk 0:00:52.9]} 20. Rfd1 {[%clk 0:00:57]} 20... Rb6 {[%clk 0:00:51.6]} 21.
Bxf6 {[%clk 0:00:48.7]} 21... Qxf6 {[%clk 0:00:51.1]} 22. Rxb6 {[%clk
0:00:46.9]} 22... axb6 {[%clk 0:00:50.7]} 23. Qd5+ {[%clk 0:00:42.4]} 23... Qf7
{[%clk 0:00:47.8]} 24. Nc6 {[%clk 0:00:20.4]} 24... Qxd5 {[%clk 0:00:47.6]} 25.
cxd5 {[%clk 0:00:13.9]} 25... Bb7 {[%clk 0:00:35]} 26. f3 {[%clk 0:00:13.9]}
26... Bxc6 {[%clk 0:00:29.4]} 27. dxc6 {[%clk 0:00:14.8]} 27... Ra8 {[%clk
0:00:30.3]} 28. Rd2 {[%clk 0:00:14.3]} 28... Kf7 {[%clk 0:00:28.5]} 29. Kf2
{[%clk 0:00:13]} 29... Ra4 {[%clk 0:00:28.7]} 30. Kg3 {[%clk 0:00:11.2]} 30...
Ke6 {[%clk 0:00:28.4]} 31. h4 {[%clk 0:00:09]} 31... d5 {[%clk 0:00:28.6]} 32.
h5 {[%clk 0:00:07.9]} 32... Kd6 {[%clk 0:00:28.9]} 33. Kh3 {[%clk 0:00:05.6]}
33... Kxc6 {[%clk 0:00:28.8]} 34. g4 {[%clk 0:00:06.5]} 34... fxg4+ {[%clk
0:00:26.7]} 35. fxg4 {[%clk 0:00:07.4]} 35... Re4 {[%clk 0:00:27.3]} 36. Rf2
{[%clk 0:00:05.1]} 36... Rxe3+ {[%clk 0:00:25.3]} 37. Kh4 {[%clk 0:00:05.8]}
37... Re7 {[%clk 0:00:26.2]} 38. h6 {[%clk 0:00:02.4]} 38... gxh6 {[%clk
0:00:24.7]} 39. Rf6+ {[%clk 0:00:02.9]} 39... Kb5 {[%clk 0:00:25.2]} 40. Rxh6
{[%clk 0:00:03.6]} 40... d4 {[%clk 0:00:25.7]} 41. Kg5 {[%clk 0:00:03.8]} 41...
d3 {[%clk 0:00:25.7]} 42. Kf6 {[%clk 0:00:04.5]} 42... Rd7 {[%clk 0:00:26.1]}
43. Rh1 {[%clk 0:00:02.9]} 43... d2 {[%clk 0:00:26.5]} 44. Rd1 {[%clk
0:00:01.6]} 44... c4 {[%clk 0:00:27]} 45. g5 {[%clk 0:00:02.1]} 45... c3 {[%clk
0:00:27.2]} 46. Ke6 {[%clk 0:00:03]} 46... c2 {[%clk 0:00:25.3]} 0-1

[Event "*** SCC Grand Prix: Titled Tuesday Blitz"]
[Site "Chess.com"]
[Date "2020.09.29"]
[Round "3"]
[White "csati17"]
[Black "mapleaff"]
[Result "1-0"]
[WhiteElo "2580"]
[BlackElo "2375"]
[TimeControl "180+1"]
[EndTime "10:28:05 PDT"]
[Termination "csati17 won by checkmate"]

1. c4 {[%clk 0:03:00.9]} 1... Nf6 {[%clk 0:02:57.4]} 2. Nc3 {[%clk 0:03:00.9]}
2... e6 {[%clk 0:02:57.7]} 3. e4 {[%clk 0:03:00.8]} 3... d5 {[%clk 0:02:58.2]}
4. cxd5 {[%clk 0:03:01.7]} 4... exd5 {[%clk 0:02:58.2]} 5. e5 {[%clk 0:03:02.6]}
5... Ne4 {[%clk 0:02:58.2]} 6. Nf3 {[%clk 0:03:02.9]} 6... c5 {[%clk 0:02:56.7]}
7. d4 {[%clk 0:03:01.2]} 7... Nxc3 {[%clk 0:02:56.1]} 8. bxc3 {[%clk 0:03:01.2]}
8... cxd4 {[%clk 0:02:55.6]} 9. Nxd4 {[%clk 0:02:43]} 9... Nc6 {[%clk
0:02:51.7]} 10. Bb5 {[%clk 0:02:40.3]} 10... Bd7 {[%clk 0:02:50.2]} 11. O-O
{[%clk 0:02:40.5]} 11... Nxd4 {[%clk 0:02:47.1]} 12. Bxd7+ {[%clk 0:02:39.9]}
12... Qxd7 {[%clk 0:02:47.3]} 13. Qxd4 {[%clk 0:02:38.4]} 13... b6 {[%clk
0:02:34.9]} 14. Rd1 {[%clk 0:02:28.1]} 14... Rc8 {[%clk 0:02:23.8]} 15. Bb2
{[%clk 0:01:36.4]} 15... Rd8 {[%clk 0:02:09.2]} 16. e6 {[%clk 0:00:54.8]} 16...
fxe6 {[%clk 0:02:06.3]} 17. c4 {[%clk 0:00:54]} 17... Bc5 {[%clk 0:01:55]} 18.
Qxg7 {[%clk 0:00:42.9]} 18... Qxg7 {[%clk 0:01:54.9]} 19. Bxg7 {[%clk
0:00:43.8]} 19... Rg8 {[%clk 0:01:55.6]} 20. Bf6 {[%clk 0:00:34.9]} 20... Rd7
{[%clk 0:01:46.5]} 21. cxd5 {[%clk 0:00:33.4]} 21... exd5 {[%clk 0:01:45]} 22.
Re1+ {[%clk 0:00:31.3]} 22... Kf7 {[%clk 0:01:45.4]} 23. Bh4 {[%clk 0:00:31.6]}
23... Re8 {[%clk 0:01:38.2]} 24. Rxe8 {[%clk 0:00:28.7]} 24... Kxe8 {[%clk
0:01:39.1]} 25. Rd1 {[%clk 0:00:29.4]} 25... Kf7 {[%clk 0:01:38.1]} 26. Kf1
{[%clk 0:00:27.8]} 26... Ke6 {[%clk 0:01:37.7]} 27. Ke2 {[%clk 0:00:27.6]} 27...
d4 {[%clk 0:01:25.1]} 28. Kd3 {[%clk 0:00:26.5]} 28... Kd5 {[%clk 0:01:25.4]}
29. Re1 {[%clk 0:00:23.2]} 29... Bd6 {[%clk 0:01:13.7]} 30. Re4 {[%clk
0:00:22.9]} 30... Bc5 {[%clk 0:01:08.5]} 31. f4 {[%clk 0:00:20.8]} 31... Rg7
{[%clk 0:01:05.8]} 32. g3 {[%clk 0:00:19.5]} 32... Rf7 {[%clk 0:00:50.9]} 33. g4
{[%clk 0:00:18.4]} 33... a5 {[%clk 0:00:48.3]} 34. f5 {[%clk 0:00:17.7]} 34...
h5 {[%clk 0:00:47.6]} 35. h3 {[%clk 0:00:17.1]} 35... b5 {[%clk 0:00:40.6]} 36.
Bf2 {[%clk 0:00:11.2]} 36... hxg4 {[%clk 0:00:30.6]} 37. hxg4 {[%clk 0:00:12.1]}
37... Rh7 {[%clk 0:00:30.9]} 38. Bxd4 {[%clk 0:00:12.4]} 38... Rh3+ {[%clk
0:00:31.3]} 39. Re3 {[%clk 0:00:12.9]} 39... Rh4 {[%clk 0:00:28.7]} 40. Re5+
{[%clk 0:00:12.7]} 40... Kd6 {[%clk 0:00:29.2]} 41. Rxc5 {[%clk 0:00:12.7]}
41... Rxg4 {[%clk 0:00:29.6]} 42. Rxb5 {[%clk 0:00:12.7]} 42... a4 {[%clk
0:00:29]} 43. Ra5 {[%clk 0:00:11.4]} 43... Rg3+ {[%clk 0:00:29.2]} 44. Kc4
{[%clk 0:00:11.4]} 44... Rf3 {[%clk 0:00:29.6]} 45. f6 {[%clk 0:00:10.1]} 45...
a3 {[%clk 0:00:30.1]} 46. Ra6+ {[%clk 0:00:09.9]} 46... Kc7 {[%clk 0:00:30.2]}
47. Kd5 {[%clk 0:00:10.2]} 47... Rf5+ {[%clk 0:00:27.6]} 48. Ke6 {[%clk
0:00:10.3]} 48... Rf4 {[%clk 0:00:28]} 49. Be5+ {[%clk 0:00:09.9]} 49... Kb7
{[%clk 0:00:28.6]} 50. Bxf4 {[%clk 0:00:10.8]} 50... Kxa6 {[%clk 0:00:29.4]} 51.
f7 {[%clk 0:00:11.7]} 51... Kb5 {[%clk 0:00:29.9]} 52. f8=Q {[%clk 0:00:12.6]}
52... Kc4 {[%clk 0:00:30.8]} 53. Qxa3 {[%clk 0:00:12.6]} 53... Kd4 {[%clk
0:00:30.4]} 54. Qb3 {[%clk 0:00:13]} 54... Ke4 {[%clk 0:00:30.4]} 55. a4 {[%clk
0:00:12]} 55... Kd4 {[%clk 0:00:31.3]} 56. a5 {[%clk 0:00:12.8]} 56... Ke4
{[%clk 0:00:31.9]} 57. a6 {[%clk 0:00:13.7]} 57... Kd4 {[%clk 0:00:32.8]} 58. a7
{[%clk 0:00:14.3]} 58... Ke4 {[%clk 0:00:33.7]} 59. a8=Q+ {[%clk 0:00:14.8]}
59... Kd4 {[%clk 0:00:34.6]} 60. Qad5# {[%clk 0:00:15.1]} 1-0

[Event "*** SCC Grand Prix: Titled Tuesday Blitz"]
[Site "Chess.com"]
[Date "2020.09.29"]
[Round "3"]
[White "AnkitGajwa"]
[Black "shineatchess"]
[Result "1-0"]
[WhiteElo "2418"]
[BlackElo "2208"]
[TimeControl "180+1"]
[EndTime "10:28:05 PDT"]
[Termination "AnkitGajwa won on time"]

1. d4 {[%clk 0:03:00.9]} 1... Nf6 {[%clk 0:02:58.9]} 2. c4 {[%clk 0:02:54.9]}
2... g6 {[%clk 0:02:59.2]} 3. Nc3 {[%clk 0:02:53.4]} 3... Bg7 {[%clk 0:02:59]}
4. e4 {[%clk 0:02:52.5]} 4... d6 {[%clk 0:02:59.3]} 5. Nf3 {[%clk 0:02:51.5]}
5... O-O {[%clk 0:02:59.2]} 6. Be2 {[%clk 0:02:50.8]} 6... Bg4 {[%clk
0:02:54.3]} 7. O-O {[%clk 0:02:50.2]} 7... Bxf3 {[%clk 0:02:42.4]} 8. Bxf3
{[%clk 0:02:48.5]} 8... e5 {[%clk 0:02:40]} 9. d5 {[%clk 0:02:45.3]} 9... Nbd7
{[%clk 0:02:38.4]} 10. Be3 {[%clk 0:02:43.7]} 10... a5 {[%clk 0:02:36.6]} 11. a3
{[%clk 0:02:41.6]} 11... Nc5 {[%clk 0:02:19.2]} 12. b4 {[%clk 0:02:37.3]} 12...
axb4 {[%clk 0:02:19.2]} 13. axb4 {[%clk 0:02:37.2]} 13... Rxa1 {[%clk
0:02:18.6]} 14. Qxa1 {[%clk 0:02:36.7]} 14... Nb3 {[%clk 0:02:16.7]} 15. Qa7
{[%clk 0:02:21.6]} 15... Nd4 {[%clk 0:02:00.3]} 16. Qxb7 {[%clk 0:02:15.1]}
16... Nxf3+ {[%clk 0:01:59.1]} 17. gxf3 {[%clk 0:02:14.5]} 17... Nh5 {[%clk
0:01:53.6]} 18. c5 {[%clk 0:01:52.7]} 18... f5 {[%clk 0:01:29]} 19. cxd6 {[%clk
0:01:47.3]} 19... cxd6 {[%clk 0:01:28.6]} 20. Ra1 {[%clk 0:01:40.3]} 20... fxe4
{[%clk 0:01:20.1]} 21. Nxe4 {[%clk 0:01:33.9]} 21... h6 {[%clk 0:00:25.3]} 22.
Ra7 {[%clk 0:01:27.1]} 22... Kh7 {[%clk 0:00:20.5]} 23. Qe7 {[%clk 0:01:10.9]}
23... Qxe7 {[%clk 0:00:19.9]} 24. Rxe7 {[%clk 0:01:10.3]} 24... Rb8 {[%clk
0:00:17.8]} 25. Nxd6 {[%clk 0:00:58.8]} 25... Rxb4 {[%clk 0:00:17.2]} 26. Ne8
{[%clk 0:00:59.1]} 26... Rb1+ {[%clk 0:00:15.2]} 27. Kg2 {[%clk 0:00:58.7]}
27... Kg8 {[%clk 0:00:13.3]} 28. Nxg7 {[%clk 0:00:39.3]} 28... Nxg7 {[%clk
0:00:11.4]} 29. Rxe5 {[%clk 0:00:39.5]} 29... h5 {[%clk 0:00:08.9]} 30. d6
{[%clk 0:00:39]} 30... Rd1 {[%clk 0:00:08]} 31. Bc5 {[%clk 0:00:38]} 31... Kf7
{[%clk 0:00:06.9]} 32. Re7+ {[%clk 0:00:37.5]} 32... Kf6 {[%clk 0:00:04.7]} 33.
Ba3 {[%clk 0:00:33.4]} 33... Nf5 {[%clk 0:00:03.7]} 34. Ra7 {[%clk 0:00:30.5]}
34... Nxd6 {[%clk 0:00:02.1]} 35. Ra6 {[%clk 0:00:30.7]} 35... Ke6 {[%clk
0:00:02.3]} 36. Kg3 {[%clk 0:00:30.8]} 36... Ke5 {[%clk 0:00:01.6]} 37. Bxd6+
{[%clk 0:00:30.3]} 37... Rxd6 {[%clk 0:00:01.7]} 38. Rxd6 {[%clk 0:00:30.8]}
38... Kxd6 {[%clk 0:00:02.6]} 39. Kf4 {[%clk 0:00:31.5]} 39... Ke6 {[%clk
0:00:02.8]} 40. Kg5 {[%clk 0:00:31.9]} 40... Kf7 {[%clk 0:00:03.1]} 41. f4
{[%clk 0:00:31.3]} 41... Kg7 {[%clk 0:00:03.3]} 42. h4 {[%clk 0:00:27.6]} 42...
Kf7 {[%clk 0:00:03]} 43. f5 {[%clk 0:00:27.9]} 43... gxf5 {[%clk 0:00:02.8]} 44.
Kxf5 {[%clk 0:00:28.3]} 44... Kg7 {[%clk 0:00:03.1]} 45. Kg5 {[%clk 0:00:28.7]}
45... Kh7 {[%clk 0:00:02.8]} 46. Kxh5 {[%clk 0:00:29.1]} 46... Kg7 {[%clk
0:00:02.9]} 47. Kg5 {[%clk 0:00:29.4]} 1-0

[Event "*** SCC Grand Prix: Titled Tuesday Blitz"]
[Site "Chess.com"]
[Date "2020.09.29"]
[Round "3"]
[White "Paladin61"]
[Black "nrvisakh"]
[Result "1/2-1/2"]
[WhiteElo "2633"]
[BlackElo "2806"]
[TimeControl "180+1"]
[EndTime "10:28:06 PDT"]
[Termination "Game drawn by repetition"]

1. b3 {[%clk 0:03:00.9]} 1... Nf6 {[%clk 0:02:26.4]} 2. Bb2 {[%clk 0:03:01.8]}
2... c5 {[%clk 0:02:20.3]} 3. Nf3 {[%clk 0:02:58.4]} 3... Nc6 {[%clk 0:02:20.4]}
4. e3 {[%clk 0:02:57]} 4... g6 {[%clk 0:02:18.3]} 5. d4 {[%clk 0:02:56.2]} 5...
cxd4 {[%clk 0:02:18]} 6. Nxd4 {[%clk 0:02:56.8]} 6... Bg7 {[%clk 0:02:17.7]} 7.
Be2 {[%clk 0:02:56.6]} 7... O-O {[%clk 0:02:17.6]} 8. O-O {[%clk 0:02:56.2]}
8... d5 {[%clk 0:02:17.5]} 9. c4 {[%clk 0:02:53]} 9... Re8 {[%clk 0:02:13.8]}
10. cxd5 {[%clk 0:02:44.2]} 10... Nxd4 {[%clk 0:02:09.1]} 11. Qxd4 {[%clk
0:02:27.4]} 11... Qxd5 {[%clk 0:02:07.5]} 12. Qxd5 {[%clk 0:02:14.7]} 12... Nxd5
{[%clk 0:02:08.4]} 13. Bxg7 {[%clk 0:02:14.2]} 13... Kxg7 {[%clk 0:02:08.6]} 14.
Rc1 {[%clk 0:02:07]} 14... Be6 {[%clk 0:01:57.1]} 15. Nc3 {[%clk 0:01:58]} 15...
Nxc3 {[%clk 0:01:56.5]} 16. Rxc3 {[%clk 0:01:57.6]} 16... Rad8 {[%clk
0:01:57.4]} 17. Bf3 {[%clk 0:01:32.4]} 17... Bd5 {[%clk 0:01:25.8]} 18. Bxd5
{[%clk 0:01:23.7]} 18... Rxd5 {[%clk 0:01:26.7]} 19. Rc7 {[%clk 0:01:20.1]}
19... Red8 {[%clk 0:01:26.4]} 20. g3 {[%clk 0:01:00.5]} 20... R8d7 {[%clk
0:01:25.4]} 21. Rac1 {[%clk 0:00:56.4]} 21... e6 {[%clk 0:01:17.6]} 22. Kg2
{[%clk 0:00:52.5]} 22... a5 {[%clk 0:01:17.2]} 23. Kf3 {[%clk 0:00:48.8]} 23...
b5 {[%clk 0:01:17]} 24. Rxd7 {[%clk 0:00:44.8]} 24... Rxd7 {[%clk 0:01:15.8]}
25. Rc5 {[%clk 0:00:44.4]} 25... Rd2 {[%clk 0:01:15.5]} 26. a4 {[%clk
0:00:28.6]} 26... b4 {[%clk 0:01:14.2]} 27. Rxa5 {[%clk 0:00:28.7]} 27... Rd3
{[%clk 0:01:14]} 28. Rb5 {[%clk 0:00:27.7]} 28... Rxb3 {[%clk 0:01:13.9]} 29. a5
{[%clk 0:00:28.1]} 29... Rb2 {[%clk 0:01:12.9]} 30. a6 {[%clk 0:00:27.1]} 30...
Ra2 {[%clk 0:01:12.9]} 31. Rxb4 {[%clk 0:00:26.5]} 31... Rxa6 {[%clk 0:01:12.8]}
32. h4 {[%clk 0:00:25.8]} 32... h6 {[%clk 0:01:12.3]} 33. Rb7 {[%clk 0:00:25.4]}
33... Ra5 {[%clk 0:01:10.2]} 34. Rc7 {[%clk 0:00:25]} 34... g5 {[%clk
0:01:09.2]} 35. hxg5 {[%clk 0:00:24]} 35... hxg5 {[%clk 0:01:10.1]} 36. g4
{[%clk 0:00:23.6]} 36... Kf6 {[%clk 0:01:09.8]} 37. Kg3 {[%clk 0:00:22.7]} 37...
Ra1 {[%clk 0:01:08]} 38. Kf3 {[%clk 0:00:22.6]} 38... Ra4 {[%clk 0:01:07.7]} 39.
Kg3 {[%clk 0:00:22.1]} 39... Kg6 {[%clk 0:01:07.7]} 40. Kf3 {[%clk 0:00:22]}
40... f5 {[%clk 0:01:07.2]} 41. gxf5+ {[%clk 0:00:20.8]} 41... exf5 {[%clk
0:01:08.1]} 42. Rc6+ {[%clk 0:00:19.5]} 42... Kf7 {[%clk 0:01:07.9]} 43. Rc7+
{[%clk 0:00:19.6]} 43... Ke6 {[%clk 0:01:07.4]} 44. Rc6+ {[%clk 0:00:19.5]}
44... Kd5 {[%clk 0:01:06.9]} 45. Rc8 {[%clk 0:00:18.6]} 45... g4+ {[%clk
0:01:05.3]} 46. Kg3 {[%clk 0:00:18.6]} 46... Ke4 {[%clk 0:01:03.9]} 47. Rd8
{[%clk 0:00:18]} 47... Ke5 {[%clk 0:00:52.6]} 48. Re8+ {[%clk 0:00:16.9]} 48...
Kf6 {[%clk 0:00:52]} 49. Rf8+ {[%clk 0:00:16.8]} 49... Ke5 {[%clk 0:00:50.8]}
50. Re8+ {[%clk 0:00:16.5]} 50... Kf6 {[%clk 0:00:50.9]} 51. Rf8+ {[%clk
0:00:16.5]} 51... Ke6 {[%clk 0:00:49.4]} 52. Re8+ {[%clk 0:00:16.2]} 52... Kf7
{[%clk 0:00:49.3]} 53. Re5 {[%clk 0:00:15.7]} 53... Kf6 {[%clk 0:00:49]} 54. Re8
{[%clk 0:00:15.3]} 54... Kf7 {[%clk 0:00:45.2]} 55. Re5 {[%clk 0:00:14.4]} 55...
Kg6 {[%clk 0:00:45.1]} 56. Re6+ {[%clk 0:00:13.8]} 56... Kg5 {[%clk 0:00:41.1]}
57. Re8 {[%clk 0:00:13.1]} 57... Kf6 {[%clk 0:00:36.1]} 1/2-1/2